bitfinex/quotes_SOLUSD_20250611
["timestamp","ask_amount","ask_price","bid_price","bid_amount"]
[1749670711149,26.66,162.57,162.54,14.50434873]
[1749670711739,11.36287798,162.62,162.55,14.50434873]
[1749670711937,26.0,162.59,162.56,14.50434873]
[1749670712646,26.0,162.59,162.55,14.50434873]
[1749670713346,52.62,162.59,162.55,24.19200729]
[1749670714130,52.62,162.59,162.51,24.80299521]
[1749670714335,52.62,162.59,162.55,24.19200729]
[1749670714650,52.62,162.59,162.51,24.80299521]
[1749670714651,26.6,162.59,162.56,24.19200729]
[1749670714850,26.6,162.59,162.57,24.19200729]
[1749670715030,26.28432314,162.61,162.57,24.19200729]
[1749670715236,26.72216157,162.6,162.57,24.19200729]
[1749670715933,26.72216157,162.6,162.52,6.15291991]
[1749670716138,26.72216157,162.6,162.56,24.19200729]
[1749670716345,0.14216157,162.6,162.56,24.19200729]
[1749670716546,26.6,162.59,162.56,24.19200729]
[1749670717444,26.6,162.59,162.55,24.19200729]
[1749670717645,26.6,162.59,162.54,18.46173835]
[1749670717850,0.14216157,162.59,162.55,24.19200729]
[1749670718062,26.70216157,162.59,162.55,24.19200729]
[1749670719862,26.56,162.59,162.56,24.19200729]
[1749670720157,8.2674,162.62,162.57,24.19200729]
[1749670720355,8.2674,162.62,162.54,18.51465164]
[1749670720356,24.19200729,162.64,162.59,24.19200729]
[1749670720659,0.14216157,162.62,162.59,24.19200729]
[1749670720954,0.28432314,162.62,162.58,24.19200729]
[1749670722653,24.47633043,162.62,162.57,24.19200729]
[1749670722956,51.01633043,162.62,162.57,24.19200729]
[1749670723761,0.28432314,162.62,162.59,24.19200729]
[1749670723942,0.28432314,162.63,162.6,24.19200729]
[1749670725275,0.28432314,162.63,162.59,24.19200729]
[1749670726167,0.28432314,162.63,162.6,24.19200729]
[1749670726381,0.28432314,162.63,162.59,24.19200729]
[1749670727548,24.47633043,162.63,162.58,24.19200729]
[1749670728040,0.28432314,162.63,162.59,24.19200729]
[1749670729565,3.1350066,162.64,162.6,24.19200729]
[1749670729874,0.28432314,162.64,162.6,24.19200729]
[1749670730043,24.19200729,162.68,162.63,24.19200729]
[1749670730252,26.5,162.68,162.64,24.19200729]
[1749670730440,26.0,162.67,162.65,24.19200729]
[1749670730767,31.86870729,162.7,162.65,24.19200729]
[1749670730948,58.38870729,162.7,162.65,24.19200729]
[1749670731140,0.28432314,162.69,162.66,24.19200729]
[1749670731341,3.15287312,162.69,162.65,24.19200729]
[1749670731655,50.69200729,162.72,162.67,24.19200729]
[1749670731884,0.28432314,162.71,162.61,0.14216157]
[1749670732093,0.28432314,162.71,162.68,24.19200729]
[1749670732272,50.73200729,162.72,162.68,24.19200729]
[1749670732471,0.28432314,162.71,162.68,24.19200729]
[1749670732982,0.28432314,162.71,162.69,24.19200729]
[1749670732983,0.14216157,162.71,162.69,24.19200729]
[1749670733183,3.14833003,162.72,162.69,24.19200729]
[1749670733387,84.87320729,162.74,162.69,24.19200729]
[1749670733693,34.1412,162.74,162.7,24.19200729]
[1749670733907,0.14216157,162.73,162.7,24.19200729]
[1749670734089,0.28432314,162.73,162.7,24.19200729]
[1749670735303,0.28432314,162.73,162.66,6.14761539]
[1749670735528,0.28432314,162.73,162.7,14.4882849]
[1749670735884,8.0451,162.78,162.72,14.4882849]
[1749670736087,26.5,162.79,162.75,14.4882849]
[1749670736291,14.4882849,162.8,162.67,18.79181043]
[1749670736292,26.52,162.8,162.76,14.4882849]
[1749670736480,26.52,162.8,162.77,14.4882849]
[1749670736883,14.4882849,162.8,162.76,14.4882849]
[1749670737085,26.0,162.79,162.76,14.4882849]
[1749670737395,26.0,162.79,162.77,14.4882849]
[1749670737593,22.0496849,162.82,162.77,14.4882849]
[1749670737793,26.52,162.81,162.77,14.4882849]
[1749670737987,0.28432314,162.8,162.77,14.4882849]
[1749670738194,26.52,162.81,162.77,14.4882849]
[1749670738398,41.0082849,162.81,162.77,14.4882849]
[1749670738584,0.28432314,162.8,162.77,14.4882849]
[1749670738998,0.28432314,162.81,162.78,14.4882849]
[1749670740507,0.28432314,162.81,162.77,14.4882849]
[1749670741908,0.28432314,162.81,162.73,6.1451484]
[1749670742120,0.28432314,162.81,162.77,14.4882849]
[1749670742485,14.77260804,162.81,162.77,14.4882849]
[1749670743195,0.28432314,162.81,162.78,14.4882849]
[1749670743708,14.77260804,162.81,162.77,14.4882849]
[1749670743885,0.28432314,162.81,162.77,14.4882849]
[1749670744081,0.28432314,162.81,162.78,14.4882849]
[1749670744307,0.28432314,162.81,162.73,6.14502882]
[1749670744508,6.0983,162.85,162.8,14.4882849]
[1749670744808,46.9865849,162.85,162.8,14.4882849]
[1749670745117,46.9865849,162.85,162.75,0.14216157]
[1749670745118,0.28432314,162.84,162.81,14.4882849]
[1749670745488,31.19070854,162.86,162.77,18.64964886]
[1749670745686,45.67899344,162.86,162.82,14.4882849]
[1749670745890,0.28432314,162.85,162.82,14.4882849]
[1749670746209,0.14216157,162.85,162.82,14.4882849]
[1749670746413,0.28432314,162.85,162.82,14.4882849]
[1749670746612,14.77260804,162.83,162.74,26.0]
[1749670746909,14.4882849,162.82,162.77,14.4882849]
[1749670747295,14.4882849,162.82,162.74,26.0]
[1749670747511,14.77260804,162.81,162.74,26.0]
[1749670747801,14.77260804,162.81,162.77,14.4882849]
[1749670748181,0.28432314,162.81,162.77,14.4882849]
[1749670749014,0.28432314,162.81,162.78,14.4882849]
[1749670749311,31.15070854,162.86,162.75,18.79181043]
[1749670749805,42.6686849,162.86,162.81,14.4882849]
[1749670750325,0.28432314,162.85,162.81,14.4882849]
[1749670751186,0.28432314,162.85,162.81,24.11467663]
[1749670751387,0.28432314,162.85,162.82,24.11467663]
[1749670752202,26.0,162.86,162.83,24.11467663]
[1749670752402,56.54587663,162.89,162.84,24.11467663]
[1749670752602,26.5,162.88,162.84,24.11467663]
[1749670753112,50.61467663,162.88,162.84,24.11467663]
[1749670753795,24.11467663,162.88,162.84,24.11467663]
[1749670754312,24.39899977,162.88,162.84,24.11467663]
[1749670754706,0.28432314,162.88,162.79,24.79252124]
[1749670754918,24.39899977,162.88,162.84,24.11467663]
[1749670755291,0.28432314,162.88,162.83,24.11467663]
[1749670755595,0.28432314,162.88,162.81,24.11467663]
[1749670755596,24.11467663,162.86,162.81,24.11467663]
[1749670756613,0.28432314,162.86,162.82,24.11467663]
[1749670757207,24.11467663,162.87,162.82,24.11467663]
[1749670757417,0.28432314,162.87,162.83,24.11467663]
[1749670758494,0.28432314,162.87,162.79,18.64964886]
[1749670758688,0.28432314,162.87,162.82,24.11467663]
[1749670758895,24.39899977,162.87,162.82,24.11467663]
[1749670759315,0.28432314,162.87,162.83,24.11467663]
[1749670759611,24.39899977,162.88,162.83,24.11467663]
[1749670760819,0.28432314,162.88,162.83,24.11467663]
[1749670761115,24.39899977,162.88,162.83,24.11467663]
[1749670762416,0.28432314,162.88,162.85,24.11467663]
[1749670762606,52.31727025,162.89,162.85,24.11467663]
[1749670762809,52.31727025,162.89,162.84,24.11467663]
[1749670763026,24.11467663,162.88,162.79,24.7923988]
[1749670763322,24.11467663,162.86,162.78,1.6508]
[1749670763499,24.11467663,162.86,162.81,24.11467663]
[1749670766026,0.14216157,162.88,162.78,1.6508]
[1749670766202,24.11467663,162.86,162.82,24.11467663]
[1749670766405,0.14216157,162.88,162.78,7.79403749]
[1749670766406,0.14216157,162.88,162.78,1.6508]
[1749670766714,24.11467663,162.86,162.81,24.11467663]
[1749670768330,24.11467663,162.85,162.8,24.11467663]
[1749670768497,6.3834,162.86,162.76,0.14216157]
[1749670768698,56.49807663,162.86,162.76,0.14216157]
[1749670768900,32.3834,162.86,162.82,24.11467663]
[1749670769524,32.3834,162.86,162.79,18.64964886]
[1749670769525,56.49807663,162.86,162.79,18.64964886]
[1749670769809,56.49807663,162.86,162.81,24.11467663]
[1749670770129,32.3834,162.86,162.82,24.11467663]
[1749670771314,32.3834,162.86,162.82,14.46704873]
[1749670773724,26.0,162.86,162.82,14.46704873]
[1749670774035,40.92704873,162.87,162.82,14.46704873]
[1749670775220,66.92704873,162.87,162.82,14.46704873]
[1749670776136,0.28432314,162.88,162.84,14.46704873]
[1749670776311,34.2035,162.9,162.86,14.46704873]
[1749670776512,48.67054873,162.9,162.85,14.46704873]
[1749670776813,14.46704873,162.89,162.84,14.46704873]
[1749670777216,14.46704873,162.89,162.81,18.64964886]
[1749670777538,34.2035,162.9,162.86,14.46704873]
[1749670777742,34.2035,162.9,162.87,14.46704873]
[1749670778035,26.0,162.9,162.87,14.46704873]
[1749670778239,14.46704873,162.93,162.88,14.46704873]
[1749670778415,41.40704873,162.93,162.88,14.46704873]
[1749670778617,14.46704873,162.92,162.88,14.46704873]
[1749670779113,14.46704873,162.9,162.85,14.46704873]
[1749670779337,40.46704873,162.9,162.85,14.46704873]
[1749670779539,26.0,162.9,162.85,14.46704873]
[1749670779742,26.0,162.9,162.86,14.46704873]
[1749670780247,26.0,162.9,162.87,14.46704873]
[1749670780820,0.14216157,162.93,162.88,14.46704873]
[1749670780821,26.0,162.91,162.88,14.46704873]
[1749670781038,26.0,162.91,162.87,14.46704873]
[1749670781331,26.0,162.91,162.88,14.46704873]
[1749670782241,14.46704873,162.92,162.88,14.46704873]
[1749670782833,27.04216157,162.93,162.87,14.46704873]
[1749670783142,14.46704873,162.92,162.87,14.46704873]
[1749670784340,27.04216157,162.93,162.84,6.1408839]
[1749670784649,14.46704873,162.92,162.87,14.46704873]
[1749670785843,14.46704873,162.92,162.88,14.46704873]
[1749670786139,14.46704873,162.92,162.84,6.1409242]
[1749670786323,14.46704873,162.92,162.87,14.46704873]
[1749670787137,14.46704873,162.92,162.88,14.46704873]
[1749670787743,27.06216157,162.93,162.88,14.46704873]
[1749670787918,14.46704873,162.92,162.88,14.46704873]
[1749670788119,14.46704873,162.92,162.83,24.79088697]
[1749670788336,14.46704873,162.92,162.87,14.46704873]
[1749670788746,14.46704873,162.92,162.83,24.79088697]
[1749670788925,14.46704873,162.92,162.87,14.46704873]
[1749670789543,14.46704873,162.92,162.88,14.46704873]
[1749670789755,14.46704873,162.92,162.83,24.79088697]
[1749670789953,14.46704873,162.92,162.87,14.46704873]
[1749670790321,14.46704873,162.92,162.88,14.46704873]
[1749670790730,26.82,162.93,162.88,14.46704873]
[1749670790938,14.46704873,162.92,162.88,14.46704873]
[1749670791335,14.46704873,162.93,162.89,14.46704873]
[1749670791555,34.1916,162.94,162.84,0.14216157]
[1749670791556,34.1916,162.94,162.9,14.46704873]
[1749670791853,22.65864873,162.94,162.9,14.46704873]
[1749670793429,8.1916,162.94,162.9,14.46704873]
[1749670793642,22.65864873,162.94,162.9,14.46704873]
[1749670795353,8.1916,162.94,162.9,14.46704873]
[1749670795523,22.65864873,162.94,162.9,14.46704873]
[1749670795726,22.65864873,162.94,162.86,44.64964886]
[1749670795927,22.65864873,162.94,162.89,14.46704873]
[1749670796561,14.46704873,162.93,162.86,44.64964886]
[1749670796739,14.46704873,162.93,162.88,14.46704873]
[1749670799057,8.1916,162.94,162.89,14.46704873]
[1749670799352,14.46704873,162.93,162.89,14.46704873]
[1749670799559,14.46704873,162.9,162.82,0.14216157]
[1749670799733,14.46704873,162.87,162.8,1.5594]
[1749670800057,14.46704873,162.87,162.82,14.46704873]
[1749670801869,14.46704873,162.88,162.83,14.46704873]
[1749670802160,14.46704873,162.88,162.81,18.64964886]
[1749670802161,14.46704873,162.9,162.85,14.46704873]
[1749670802464,52.76,162.91,162.85,14.46704873]
[1749670802663,14.46704873,162.9,162.85,14.46704873]
[1749670803862,52.76,162.91,162.85,14.46704873]
[1749670804061,14.46704873,162.9,162.85,14.46704873]
[1749670805861,52.76,162.91,162.85,14.46704873]
[1749670806062,14.46704873,162.9,162.85,14.46704873]
[1749670807073,14.46704873,162.89,162.85,14.46704873]
[1749670807572,52.76,162.91,162.85,14.46704873]
[1749670807573,14.46704873,162.9,162.85,14.46704873]
[1749670807748,14.46704873,162.9,162.86,14.46704873]
[1749670808074,14.46704873,162.9,162.85,14.46704873]
[1749670808470,14.46704873,162.89,162.82,6.28391319]
[1749670808645,14.46704873,162.89,162.84,14.46704873]
[1749670810363,52.76,162.91,162.86,14.46704873]
[1749670810659,14.46704873,162.9,162.86,14.46704873]
[1749670811070,14.46704873,162.92,162.87,14.46704873]
[1749670811558,14.46704873,162.92,162.84,18.79181043]
[1749670811762,14.46704873,162.92,162.87,14.46704873]
[1749670812155,14.46704873,162.92,162.84,18.79181043]
[1749670812456,8.1916,162.94,162.89,14.46704873]
[1749670812679,14.46704873,162.96,162.91,14.46704873]
[1749670812884,14.46704873,162.97,162.92,14.46704873]
[1749670813049,22.25664873,162.98,162.93,14.46704873]
[1749670813682,14.46704873,162.98,162.93,14.46704873]
[1749670814856,14.46704873,162.99,162.94,14.46704873]
[1749670816349,14.46704873,162.99,162.95,14.46704873]
[1749670816875,14.46704873,162.99,162.94,14.46704873]
[1749670819093,14.46704873,162.99,162.95,14.46704873]
[1749670819696,14.46704873,162.99,162.92,18.64964886]
[1749670820055,14.46704873,162.99,162.94,14.46704873]
[1749670821483,14.46704873,162.99,162.95,14.46704873]
[1749670821687,26.54,163.01,162.91,6.13824071]
[1749670821688,34.1631,163.02,162.96,14.46704873]
[1749670821899,14.46704873,163.01,162.96,14.46704873]
[1749670822689,48.63014873,163.02,162.97,14.46704873]
[1749670822891,8.1631,163.02,162.99,14.46704873]
[1749670823059,14.46704873,163.04,162.99,14.46704873]
[1749670823261,14.46704873,163.03,162.98,14.46704873]
[1749670824000,14.46704873,163.02,162.97,14.46704873]
[1749670825001,14.46704873,163.03,162.98,14.46704873]
[1749670825303,0.28432314,163.05,162.99,14.46704873]
[1749670825466,14.46704873,163.04,162.99,14.46704873]
[1749670825860,0.28432314,163.05,162.99,14.46704873]
[1749670826270,14.46704873,163.03,162.99,14.46704873]
[1749670827385,14.46704873,163.03,162.98,14.46704873]
[1749670827904,0.28432314,163.05,162.94,26.0]
[1749670827905,14.46704873,163.0,162.94,26.0]
[1749670828074,14.46704873,163.0,162.95,40.46704873]
[1749670828389,14.46704873,162.98,162.94,14.46704873]
[1749670829189,14.46704873,162.99,162.94,14.46704873]
[1749670829577,14.46704873,162.99,162.95,14.46704873]
[1749670830091,14.46704873,162.99,162.93,18.64964886]
[1749670830289,14.46704873,162.99,162.95,14.46704873]
[1749670832088,14.46704873,162.98,162.94,14.46704873]
[1749670832300,14.46704873,162.98,162.92,20.27324886]
[1749670832474,14.46704873,162.96,162.91,40.46704873]
[1749670832668,14.46704873,162.96,162.88,32.95164886]
[1749670832669,14.46704873,162.95,162.9,14.46704873]
[1749670833396,14.46704873,162.95,162.91,14.46704873]
[1749670834879,0.28432314,162.98,162.91,14.46704873]
[1749670835085,14.46704873,162.95,162.91,14.46704873]
[1749670835395,0.28432314,162.98,162.91,14.46704873]
[1749670835566,14.46704873,162.95,162.91,14.46704873]
[1749670836303,14.46704873,162.94,162.89,18.64964886]
[1749670836606,14.46704873,162.94,162.89,14.46704873]
[1749670836779,14.46704873,162.93,162.88,20.76704873]
[1749670837292,26.28432314,162.98,162.88,20.76704873]
[1749670837293,14.46704873,162.92,162.88,20.76704873]
[1749670837675,14.46704873,162.92,162.88,6.3]
[1749670839204,14.46704873,162.92,162.88,20.76704873]
[1749670840795,14.46704873,162.93,162.88,20.76704873]
[1749670841103,14.46704873,162.93,162.89,14.46704873]
[1749670841312,14.46704873,162.96,162.91,14.46704873]
[1749670841482,14.46704873,162.98,162.93,14.46704873]
[1749670842776,14.46704873,162.97,162.92,14.46704873]
[1749670843471,14.46704873,162.96,162.89,1.6551]
[1749670843780,14.46704873,162.96,162.91,32.86840336]
[1749670847505,14.46704873,162.96,162.91,18.40135463]
[1749670847801,14.46704873,162.96,162.91,32.86840336]
[1749670848501,14.46704873,162.92,162.91,18.40135463]
[1749670852191,14.75137187,162.92,162.91,18.40135463]
[1749670852507,41.03137187,162.92,162.91,18.40135463]
[1749670854983,26.56432314,162.92,162.91,18.40135463]
[1749670855182,41.03137187,162.92,162.91,18.40135463]
[1749670855699,26.28,162.92,162.91,18.40135463]
[1749670855904,40.74704873,162.92,162.91,18.40135463]
[1749670857607,41.03137187,162.92,162.91,18.40135463]
[1749670859508,0.28432314,162.92,162.91,18.40135463]
[1749670859696,41.03137187,162.92,162.91,18.40135463]
[1749670861517,59.68102073,162.92,162.91,18.40135463]
[1749670861712,59.8231823,162.92,162.91,18.40135463]
[1749670862919,41.03137187,162.92,162.91,18.40135463]
[1749670863318,14.46704873,162.92,162.91,18.40135463]
[1749670863521,40.74704873,162.92,162.91,18.40135463]
[1749670864193,14.46704873,162.92,162.91,18.40135463]
[1749670864517,40.74704873,162.92,162.91,18.40135463]
[1749670865303,26.28,162.92,162.91,18.40135463]
[1749670865625,14.1414029,162.92,162.91,18.40135463]
[1749670865819,14.46704873,162.92,162.91,18.40135463]
[1749670870723,40.74704873,162.93,162.91,18.40135463]
[1749670871221,14.46704873,162.96,162.91,32.86840336]
[1749670871521,26.28,162.95,162.91,32.86840336]
[1749670871916,14.46704873,162.95,162.91,32.86840336]
[1749670872127,14.46704873,162.95,162.91,18.40135463]
[1749670872803,14.46704873,162.94,162.91,18.40135463]
[1749670874436,14.46704873,162.92,162.91,18.40135463]
[1749670875525,40.74704873,162.93,162.91,18.40135463]
[1749670875718,14.46704873,162.92,162.91,18.40135463]
[1749670876961,40.74704873,162.93,162.91,18.40135463]
[1749670878045,26.28432314,162.95,162.91,18.40135463]
[1749670878046,14.46704873,162.95,162.91,18.40135463]
[1749670878216,40.74704873,162.95,162.91,18.40135463]
[1749670878550,14.46704873,162.94,162.91,18.40135463]
[1749670879940,34.30262314,162.97,162.91,32.86840336]
[1749670880150,14.46704873,162.94,162.91,18.40135463]
[1749670881916,14.46704873,162.93,162.91,18.40135463]
[1749670882546,14.46704873,162.94,162.91,18.40135463]
[1749670884443,26.28,162.96,162.95,485.53295127]
[1749670884642,14.46704873,162.96,162.95,485.53295127]
[1749670885857,48.01023103,162.96,162.95,485.53295127]
[1749670886221,29.2184206,162.96,162.95,485.53295127]
[1749670886463,14.75137187,162.96,162.95,485.53295127]
[1749670887327,48.01023103,162.96,162.95,485.53295127]
[1749670891967,14.75137187,162.96,162.95,485.53295127]
[1749670892132,67.03137187,162.96,162.95,485.53295127]
[1749670893211,81.4984206,162.96,162.95,485.53295127]
[1749670895546,100.29023103,162.96,162.95,485.53295127]
[1749670895749,74.29023103,162.96,162.95,485.53295127]
[1749670896761,74.27023103,162.96,162.95,485.53295127]
[1749670902279,78.841535,162.96,162.95,150.68825871]
[1749670902874,74.27023103,162.96,162.95,150.68825871]
[1749670903269,48.01023103,162.96,162.95,150.68825871]
[1749670903473,74.27023103,162.96,162.95,150.68825871]
[1749670914976,59.8031823,162.96,162.95,150.68825871]
[1749670915893,74.27023103,162.96,162.95,150.68825871]
[1749670919599,59.8031823,162.96,162.95,150.68825871]
[1749670920306,74.27023103,162.96,162.95,150.68825871]
[1749670921404,59.8031823,162.96,162.95,150.68825871]
[1749670922782,74.27023103,162.96,162.95,150.68825871]
[1749670927615,78.84675453,162.96,162.95,150.68825871]
[1749670928328,44.64964886,162.92,162.86,1.6062]
[1749670928617,14.46704873,162.88,162.86,1.6062]
[1749670928801,40.70704873,162.88,162.86,1.6062]
[1749670929198,14.46704873,162.87,162.86,1.6062]
[1749670929388,14.46704873,162.87,162.82,16.08764873]
[1749670930819,26.24,162.86,162.82,16.08764873]
[1749670931015,26.24,162.86,162.82,1.6206]
[1749670931321,26.24,162.87,162.85,14.46704873]
[1749670931490,14.46704873,162.9,162.86,14.46704873]
[1749670931686,26.24,162.9,162.87,14.46704873]
[1749670931991,26.24,162.9,162.86,14.46704873]
[1749670932706,40.70704873,162.9,162.84,18.72396042]
[1749670932889,40.70704873,162.9,162.86,14.46704873]
[1749670933090,14.46704873,162.9,162.86,14.46704873]
[1749670933306,40.70704873,162.9,162.86,14.46704873]
[1749670934122,14.46704873,162.9,162.86,14.46704873]
[1749670934304,40.70704873,162.9,162.86,14.46704873]
[1749670936623,14.46704873,162.89,162.85,14.46704873]
[1749670936832,14.46704873,162.89,162.84,33.19100915]
[1749670937193,14.46704873,162.89,162.84,18.72396042]
[1749670937397,14.46704873,162.89,162.85,14.46704873]
[1749670938305,0.28432314,162.89,162.85,14.46704873]
[1749670938505,0.28432314,162.89,162.84,18.72396042]
[1749670938506,14.46704873,162.86,162.84,18.72396042]
[1749670939024,40.70704873,162.86,162.84,18.72396042]
[1749670939195,26.24,162.86,162.84,18.72396042]
[1749670940017,26.24,162.86,162.84,33.19100915]
[1749670940197,26.24,162.88,162.84,33.19100915]
[1749670940820,40.70704873,162.88,162.84,18.72396042]
[1749670941118,14.46704873,162.86,162.84,18.72396042]
[1749670941303,40.70704873,162.86,162.84,18.72396042]
[1749670943700,26.24,162.86,162.84,18.72396042]
[1749670945928,26.24,162.86,162.84,33.19100915]
[1749670946809,26.24,162.86,162.84,18.72396042]
[1749670947923,40.70704873,162.86,162.84,18.72396042]
[1749670948735,26.24,162.86,162.84,18.72396042]
[1749670949613,14.46704873,162.88,162.85,14.46704873]
[1749670949614,26.24,162.88,162.85,14.46704873]
[1749670950331,40.70704873,162.88,162.84,18.72396042]
[1749670950639,0.28432314,162.87,162.84,18.72396042]
[1749670954337,14.75137187,162.87,162.84,18.72396042]
[1749670954738,14.46704873,162.86,162.84,18.72396042]
[1749670955236,14.75137187,162.87,162.84,18.72396042]
[1749670956038,14.46704873,162.86,162.84,18.72396042]
[1749670956240,40.97137187,162.85,162.84,18.72396042]
[1749670956414,40.97137187,162.85,162.74,1.6176]
[1749670956609,14.46704873,162.81,162.77,18.39459217]
[1749670956841,14.46704873,162.79,162.77,18.39459217]
[1749670957044,40.68704873,162.78,162.7,1.5451]
[1749670957235,40.68704873,162.77,162.72,14.46704873]
[1749670957434,156.8703,162.85,162.7,19.94235198]
[1749670957435,156.8703,162.85,162.74,14.46704873]
[1749670957638,26.14216157,162.85,162.82,14.46704873]
[1749670957847,26.22,162.84,162.82,14.46704873]
[1749670958029,26.22,162.84,162.81,14.46704873]
[1749670958418,26.22,162.84,162.8,14.46704873]
[1749670958841,26.22,162.84,162.81,14.46704873]
[1749670959548,26.22,162.84,162.76,27.5451]
[1749670959957,26.22,162.84,162.8,14.46704873]
[1749670960552,26.22,162.84,162.76,27.5451]
[1749670960731,26.22,162.84,162.8,14.46704873]
[1749670961630,26.22,162.84,162.76,27.5451]
[1749670961631,26.22,162.84,162.81,14.46704873]
[1749670963836,26.22,162.84,162.82,14.46704873]
[1749670964653,26.22,162.84,162.76,33.68897686]
[1749670964851,26.22,162.84,162.81,14.46704873]
[1749670965433,26.22,162.84,162.76,33.68897686]
[1749670965754,26.22,162.84,162.81,14.46704873]
[1749670966457,26.22,162.84,162.82,14.46704873]
[1749670966750,4.96720899,162.9,162.83,14.46704873]
[1749670966951,22.23974873,162.89,162.85,14.46704873]
[1749670967125,167.74964886,162.91,162.86,14.46704873]
[1749670967126,44.86964886,162.9,162.86,14.46704873]
[1749670967731,0.28432314,162.89,162.86,14.46704873]
[1749670967931,40.6092103,162.91,162.86,14.46704873]
[1749670968167,0.28432314,162.89,162.86,14.46704873]
[1749670968458,26.50432314,162.89,162.83,1.5849]
[1749670968628,0.14216157,162.89,162.87,14.46704873]
[1749670968829,0.28432314,162.89,162.87,14.46704873]
[1749670971759,26.22,162.9,162.87,14.46704873]
[1749670971760,0.28432314,162.9,162.87,14.46704873]
[1749670971967,26.48432314,162.9,162.87,14.46704873]
[1749670972170,26.48432314,162.9,162.83,1.5849]
[1749670972340,26.48432314,162.9,162.86,14.46704873]
[1749670973966,26.48432314,162.9,162.87,14.46704873]
[1749670974658,26.48432314,162.9,162.86,14.46704873]
[1749670974863,26.48432314,162.9,162.83,1.5849]
[1749670975061,26.48432314,162.9,162.86,14.46704873]
[1749670975439,26.48432314,162.9,162.83,1.5849]
[1749670975844,26.48432314,162.9,162.86,14.46704873]
[1749670978165,26.48432314,162.9,162.83,1.5849]
[1749670978370,26.48432314,162.9,162.86,14.46704873]
[1749670979456,35.73958909,162.9,162.82,18.3235427]
[1749670979663,35.73958909,162.9,162.85,9.25526595]
[1749670979869,9.25526595,162.89,162.82,18.3235427]
[1749670980069,9.25526595,162.89,162.85,9.25526595]
[1749670980874,35.73958909,162.9,162.86,9.25526595]
[1749670981670,35.73958909,162.9,162.82,24.46515884]
[1749670981978,26.48432314,162.9,162.86,9.25526595]
[1749670983303,26.48432314,162.9,162.86,14.46245834]
[1749670983584,26.48432314,162.9,162.82,24.46515884]
[1749670983748,26.48432314,162.9,162.86,14.46245834]
[1749670984660,26.2,162.9,162.87,14.46245834]
[1749670985678,7.7106,162.93,162.89,14.46245834]
[1749670985851,7.7106,162.93,162.9,14.46245834]
[1749670986054,26.18,162.92,162.89,14.46245834]
[1749670986567,0.14216157,162.92,162.89,14.46245834]
[1749670986766,0.28432314,162.92,162.89,14.46245834]
[1749670986973,26.18,162.91,162.89,14.46245834]
[1749670987670,26.18,162.91,162.9,14.46245834]
[1749670987978,26.18,162.91,162.85,6.14046409]
[1749670988182,26.18,162.91,162.9,14.46245834]
[1749670988755,0.28432314,162.93,162.9,14.46245834]
[1749670988986,0.28432314,162.94,162.91,14.46245834]
[1749670989286,26.18,162.93,162.91,14.46245834]
[1749670989456,0.28432314,162.94,162.91,14.46245834]
[1749670989656,0.28432314,162.94,162.92,14.46245834]
[1749670989883,8.1619,162.97,162.93,14.46245834]
[1749670990082,18.64964886,162.98,162.94,14.46245834]
[1749670990257,26.18,162.97,162.94,14.46245834]
[1749670990456,0.14216157,162.96,162.94,14.46245834]
[1749670990756,26.18,162.97,162.94,14.46245834]
[1749670991172,26.0,162.99,162.95,14.46245834]
[1749670991383,26.18,162.98,162.96,14.46245834]
[1749670991879,33.39643034,162.97,162.88,26.0]
[1749670992086,14.46245834,162.95,162.9,14.46245834]
[1749670992265,26.18,162.94,162.9,14.46245834]
[1749670992582,26.18,162.94,162.91,14.46245834]
[1749670993170,26.18,162.94,162.88,26.0]
[1749670993380,14.74678148,162.93,162.86,32.06]
[1749670993692,26.18,162.94,162.85,7.9866]
[1749670993693,0.28432314,162.91,162.88,14.46245834]
[1749670993877,26.46432314,162.91,162.88,14.46245834]
[1749670995292,26.18,162.91,162.89,14.46245834]
[1749670995485,26.18,162.91,162.9,14.46245834]
[1749670996383,26.18,162.94,162.9,14.46245834]
[1749670996585,26.18,162.94,162.86,26.0]
[1749670996586,26.18,162.94,162.91,14.46245834]
[1749670998692,7.6747,162.95,162.86,32.14009575]
[1749670998910,26.16,162.94,162.92,14.46245834]
[1749670999891,0.28432314,162.97,162.93,14.46245834]
[1749671000094,26.16,162.96,162.94,14.46245834]
[1749671000392,26.16,162.96,162.93,14.46245834]
[1749671001499,26.16,162.96,162.94,14.46245834]
[1749671001678,0.28432314,162.98,162.94,14.46245834]
[1749671001875,26.16,162.97,162.94,14.46245834]
[1749671002964,0.28432314,162.98,162.94,14.46245834]
[1749671003167,0.28432314,162.98,162.95,14.46245834]
[1749671003383,26.16,162.97,162.95,14.46245834]
[1749671004291,0.28432314,162.98,162.95,14.46245834]
[1749671004494,26.16,162.97,162.95,14.46245834]
[1749671004672,7.8464,163.02,162.96,14.46245834]